Cogmind - Beta 13 @@@ ROGUE MODE // 2024.05.26 @ 00:59:38 Player: BrainTooSmol Result: Self-destructed Performance ------------- Evolutions (5) 2500 Regions Visited (21) 4200 Robots Destroyed (265) 1325 Value Destroyed (11995) 11995 Prototype IDs (35) 700 Alien Tech Used (0) 0 Bonus (10345) 10345 TOTAL SCORE: 31065 Bonus ------- Triggered High Security 500 High Alert Combat Kills 1701 Follower Combat Kills 3740 Entered Garrisons 800 Used RIF Installer 2500 Network Hubs Disabled 400 Aligned with FarCom 300 Built Enhanced Grunts 300 A7 Reached Mainframe 300 Met R17 at Cetus 500 Friendly Fire -696 Cogmind --------- Core Integrity 884/1000 Matter 260/300 Energy 350/350 System Corruption 0% Temperature Cool (0) Movement Walking (120) Location -5/Factory Parts ------- > --- POWER (1) -------- Improved Quantum Reactor > --- PROPULSION (4) --- Armored Leg Armored Leg Enhanced Armored Leg > --- UTILITY (8) ------ Medium Storage Unit Advanced Melee Analysis Suite Advanced Melee Analysis Suite Centrium Medium Armor Plating Relay Coupler [NC] (68) Relay Coupler [Grunt] (40) Relay Coupler [Demolisher] (10) Relay Coupler [Heavy] (14) > --- WEAPON (4) ------- Gauss Rifle Gauss Rifle > --- INVENTORY (10) --- Biometal Leg Transmission Jammer Reaction Control System Phase Shifter Centrium Medium Armor Plating Long-range Tractor Beam Missile Launcher Improved Remote Datajack Plasma Lance Peak State ------------ > --- POWER ------------ Improved Quantum Reactor > --- PROPULSION ------- Armored Leg Armored Leg Armored Leg Enhanced Armored Leg > --- UTILITY ---------- Experimental Heat Sink Medium Storage Unit Advanced Melee Analysis Suite Advanced Melee Analysis Suite Centrium Medium Armor Plating Relay Coupler [NC] Relay Coupler [Grunt] Relay Coupler [Demolisher] > --- WEAPON ----------- Gauss Rifle Gauss Rifle Gauss Rifle Helical Railgun > --- INVENTORY -------- Biometal Leg Transmission Jammer Reaction Control System Phase Shifter Centrium Medium Armor Plating Relay Coupler [Heavy] Long-range Tractor Beam Missile Launcher Improved Remote Datajack Plasma Lance [Rating: 94] Favorites ----------- Power Nuclear Core Engine Deuterium Engine Power Core Nuclear Core Reactor Improved Quantum Reactor Propulsion Armored Leg Leg Armored Leg Utility Medium Storage Unit Device Transmission Jammer Storage Medium Storage Unit Processor Advanced Melee Analysis Suite Hackware System Shield Protection Improved Light Armor Plating Weapon Gauss Rifle Energy Gun Small Laser Energy Cannon Advanced Beam Cannon Ballistic Gun Gauss Rifle Launcher Missile Launcher Special Weapon Improved Remote Datajack Impact Weapon Heavy Flail Slashing Weapon Katana Piercing Weapon Enhanced Force Lance Build | -11 -10 -10 -9 -9 -9 -8 -8 -8 -8 -8 -7 -7 -6 -6 -6 -6 -6 -6 -6 -6 -5 ------- Run | Yrd Mat Min Mat Min Exi Min Mat Gar Mat Gar Fac Gar Fac Was Fac Ext Cet Arc Hub Gar Fac Slots Evolved 10 | . . . 2 . . . 2 . . . 2 . 2 . . . . . . . 2 Power . | . . . . . . . . . . . . . . . . . . . . . . Propulsion 2 | . . . 1 . . . . . . . . . . . . . . . . . 1 Utility 6 | . . . 1 . . . 1 . . . 1 . 2 . . . . . . . 1 Weapon 2 | . . . . . . . 1 . . . 1 . . . . . . . . . . Parts Attached 286 | 1 10 4 32 6 . 4 11 4 22 8 27 16 23 5 23 17 13 . 5 35 20 Power 21 | . . 1 4 1 . . 1 . 1 . 2 1 2 . . 2 . . . 5 1 Engine 5 | . . . 3 1 . . . . . . . . 1 . . . . . . . . Core 14 | . . 1 1 . . . 1 . 1 . 2 1 1 . . 2 . . . 4 . Reactor 2 | . . . . . . . . . . . . . . . . . . . . 1 1 Propulsion 67 | . 4 3 13 2 . 4 . . 8 2 5 2 6 . 10 3 . . 1 1 3 Treads . | . . . . . . . . . . . . . . . . . . . . . . Leg 67 | . 4 3 13 2 . 4 . . 8 2 5 2 6 . 10 3 . . 1 1 3 Wheel . | . . . . . . . . . . . . . . . . . . . . . . Hover . | . . . . . . . . . . . . . . . . . . . . . . Flight . | . . . . . . . . . . . . . . . . . . . . . . Utility 80 | 1 2 . 4 1 . . 4 . 5 . 13 1 10 . 7 6 7 . 1 11 7 Device 38 | 1 . . 1 1 . . 1 . 1 . 5 . 4 . 6 5 4 . 1 3 5 Storage 1 | . 1 . . . . . . . . . . . . . . . . . . . . Processor 7 | . . . 1 . . . 2 . . . 1 . 3 . . . . . . . . Hackware 10 | . . . . . . . . . 1 . 2 . . . . 1 . . . 4 2 Protection 24 | . 1 . 2 . . . 1 . 3 . 5 1 3 . 1 . 3 . . 4 . Artifact . | . . . . . . . . . . . . . . . . . . . . . . Weapon 118 | . 4 . 11 2 . . 6 4 8 6 7 12 5 5 6 6 6 . 3 18 9 Energy Gun 1 | . 1 . . . . . . . . . . . . . . . . . . . . Energy Cannon 1 | . . . 1 . . . . . . . . . . . . . . . . . . Ballistic Gun 88 | . 3 . 10 2 . . 3 3 7 5 7 5 4 4 6 3 5 . 2 12 7 Ballistic Cannon . | . . . . . . . . . . . . . . . . . . . . . . Launcher 1 | . . . . . . . . . . . . 1 . . . . . . . . . Special Weapon 5 | . . . . . . . . . . . . . . . . 1 . . . 2 2 Impact Weapon 12 | . . . . . . . 1 1 1 1 . 6 1 1 . . . . . . . Slashing Weapon 2 | . . . . . . . 2 . . . . . . . . . . . . . . Piercing Weapon 8 | . . . . . . . . . . . . . . . . 2 1 . 1 4 . Special Melee Weapon . | . . . . . . . . . . . . . . . . . . . . . . Unidentified Prototypes 12 | . . . 3 . . . 1 . 1 . . . . . . . 2 . . 1 4 Parts Lost 52 | . 2 . 5 5 . . . . 3 6 3 1 14 . 1 . . . . 10 2 Power 4 | . . . 1 . . . . . . 1 . . . . . . . . . 2 . Propulsion 12 | . . . 1 2 . . . . 2 3 1 . 3 . . . . . . . . Utility 20 | . 1 . 2 1 . . . . 1 1 1 1 7 . 1 . . . . 3 1 Weapon 16 | . 1 . 1 2 . . . . . 1 1 . 4 . . . . . . 5 1 Highest Loss Streak 4 | . 1 . 2 3 . . . . 2 4 1 1 4 . 1 . . . . 3 1 To Critical Strikes 2 | . . . . . . . . . . . . . . . . . . . . 2 . Average Slot Usage (%) 94 | . 98 100 90 98 100 100 99 100 97 93 94 98 84 67 93 100 100 100 99 94 96 Engine 2 | . 14 5 4 11 11 11 . . . . . . 1 6 6 . . . . . . Core 5 | . . 8 4 . . . 8 9 9 6 6 7 5 . . 5 6 6 6 4 3 Leg 23 | . 28 28 32 32 33 33 27 27 26 25 21 23 18 13 19 20 20 20 19 20 21 Device 6 | . 1 . . 9 11 11 9 9 4 . 8 13 11 1 7 12 13 6 7 4 4 Storage 7 | . 14 14 11 11 11 11 9 9 9 9 7 7 6 6 6 6 6 6 6 6 5 Processor 12 | . . . 8 11 11 11 9 9 9 9 7 7 13 20 20 20 20 20 20 20 13 Hackware 1 | . . . . . . . . . 2 6 2 2 . . . . . . . 3 14 Protection 7 | . 10 14 6 1 . . 8 9 9 9 9 4 9 1 5 6 6 13 11 7 5 Ballistic Gun 23 | . 22 28 21 21 22 22 21 24 26 26 28 25 12 13 25 25 25 26 25 24 22 Impact Weapon 1 | . . . . . . . 4 2 . . . 3 3 3 . . . . . . . Naked Turns . | . . . . . . . . . . . . . . . . . . . . . . Heaviest Build 56 | 14 22 22 27 27 26 26 31 31 31 29 38 40 46 39 48 49 53 53 53 56 56 Greatest Support 68 | 20 20 25 35 30 30 36 36 36 47 47 50 50 45 30 54 52 48 48 48 48 68 Greatest Overweight (x) 7 | . 1 1 1 1 . . . . 1 7 1 . 1 1 . . 1 1 1 1 1 Average Overweight (x) . | . . . . . . . . . . . . . . . . . . 1 . . . Largest Inventory Capacity 10 | 8 10 10 10 10 10 10 10 10 10 10 10 10 10 10 10 10 10 10 10 10 10 Average Capacity 9 | 8 9 10 10 10 10 10 10 10 10 10 10 10 10 10 10 10 10 10 10 10 10 Most Carried 10 | 6 9 10 10 10 6 10 10 10 10 10 10 10 10 10 10 10 10 10 10 10 10 Average Carried 9 | 6 7 9 9 5 5 7 9 9 9 9 9 9 8 9 9 9 9 10 10 9 9 Final Capacity 10 | 8 10 10 10 10 10 10 10 10 10 10 10 10 10 10 10 10 10 10 10 10 10 Final Carried 10 | 6 9 10 10 5 5 9 9 10 10 9 10 10 7 10 10 10 10 10 10 10 9 Class Distribution -------------------- 29% | Mutant 17% | Skirmisher 15% | Tank 13% | Scavenger-Tank 7% | Gunner 7% | Commander-Tank 3% | Scavenger-Mutant Dominant Class ---------------- Mutant | -10/Materials Mutant | -10/Mines Scavenger-Mutant | -9/Materials Mutant | -9/Mines Mutant | -9/Exiles Mutant | -8/Mines Mutant | -8/Materials Tank | -8/Garrison Skirmisher | -8/Materials Skirmisher | -8/Garrison Tank | -7/Factory Gunner | -7/Garrison Mutant | -6/Factory Mutant | -6/Waste Skirmisher | -6/Factory Commander-Tank | -6/Extension Tank | -6/Cetus Scavenger-Tank | -6/Archives Scavenger-Tank | -6/Hub_04(d) Scavenger-Tank | -6/Garrison Bothacker-Skirmisher | -5/Factory Resources | -11 -10 -10 -9 -9 -9 -8 -8 -8 -8 -8 -7 -7 -6 -6 -6 -6 -6 -6 -6 -6 -5 ----------- Run | Yrd Mat Min Mat Min Exi Min Mat Gar Mat Gar Fac Gar Fac Was Fac Ext Cet Arc Hub Gar Fac Matter Collected 10218 | 310 384 202 870 203 26 102 204 379 844 316 654 648 715 66 412 635 451 48 222 1960 567 Remotely 357 | . . . . . . . . . . . 357 . . . . . . . . . . Salvage Created 10924 | 192 589 331 1007 55 . 291 104 427 1083 471 774 579 1039 . 200 288 335 64 398 2037 660 Parts 586 | 14 46 19 64 1 . 11 6 24 74 36 48 31 43 . 8 11 14 2 16 85 33 Haulers Intercepted 3 | . 2 . 1 . . . . . . . . . . . . . . . . . . Recyclers Shooed 5 | 1 2 . . . . . . . . . . . . . 1 . . . . . 1 Parts Field Recycled . | . . . . . . . . . . . . . . . . . . . . . . Retrieved Matter . | . . . . . . . . . . . . . . . . . . . . . . Parts Self-Destructed . | . . . . . . . . . . . . . . . . . . . . . . Prevented . | . . . . . . . . . . . . . . . . . . . . . . Kills | -11 -10 -10 -9 -9 -9 -8 -8 -8 -8 -8 -7 -7 -6 -6 -6 -6 -6 -6 -6 -6 -5 ------- Run | Yrd Mat Min Mat Min Exi Min Mat Gar Mat Gar Fac Gar Fac Was Fac Ext Cet Arc Hub Gar Fac Combat Hostiles Destroyed 218 | . 13 10 24 4 . 6 2 14 20 18 13 14 17 . 1 4 5 1 4 36 12 Melee 3 | . . . . . . . . . . . . . 2 . . . . . . . 1 Guns 211 | . 13 10 24 4 . 6 2 14 20 18 13 14 11 . 1 4 5 1 4 36 11 Classes Destroyed 20 | 2 7 . 1 2 . 1 . . 1 . 1 . . . . 1 . . . 4 . Worker 13 | . 1 . 1 . . . . . 1 . 1 . 4 . 2 . . . 2 . 1 Builder 4 | . 1 . . . . . . . . . . . . . . 1 . . 1 . 1 Tunneler 6 | 6 . . . . . . . . . . . . . . . . . . . . . Hauler 3 | . 2 . 1 . . . . . . . . . . . . . . . . . . Recycler 8 | 1 . . 1 . . . . . 1 . 2 . . . 1 . . . 1 . 1 Operator 4 | . 1 . . . . . . . . . . . 1 . 1 . 1 . . . . Watcher 10 | . 2 . 2 . . . 2 . 4 . . . . . . . . . . . . Swarmer 42 | . 6 3 3 . . . . 6 5 8 3 3 . . . . . . . . 5 Cutter 5 | . . . . . . . . . . . . . . . . . . . . 5 . Saboteur 3 | . . . . . . . . . . . . . . . . . . . . 1 2 Grunt 89 | . 7 7 13 1 . 5 2 7 4 10 2 5 11 . . 1 . . 1 11 2 Brawler 6 | . . . . . . . . . . . . . . . . . . . . 5 1 Duelist 8 | . . . . . . 1 . . 1 . 1 2 1 . . . . . 1 . 1 Sentry 37 | . . . 8 . . . . 1 7 . 4 1 2 . 1 1 . 1 1 9 1 Demolisher 2 | . . . . 2 . . . . . . . . . . . . . . . . . Specialist 1 | . . . . . . . . . . . . . . . . . . . . 1 . Hunter 15 | . . . . . . . . . 3 . 2 2 1 . . . 2 . 1 4 . Programmer 4 | . . . . . . . . . . . 1 1 2 . . . . . . . . Behemoth 2 | . . . . . . . . . . . . . . . . 2 . . . . . Cetus Guard 3 | . . . . . . . . . . . . . . . . . 3 . . . . Assembled 2 | . . . . 2 . . . . . . . . . . . . . . . . . Best Kill Streak 9 | 2 9 6 9 2 . 3 3 5 4 6 4 4 5 . 3 1 3 1 4 5 5 Combat Bots Only 8 | . 8 6 7 2 . 3 2 5 2 6 4 4 3 . 1 1 3 1 2 5 5 Max Kills in Single Turn 2 | 1 1 1 2 1 . 2 1 2 2 2 2 2 1 . 2 1 2 1 2 2 1 Gunslinging 1 | . . . 1 . . 1 . 1 . 1 1 1 . . . . . . . 1 . Exploded . | . . . . . . . . . . . . . . . . . . . . . . Melee 1 | . . . . . . . . . . . . . 1 . . . . . . . 1 Uniques/NPCs Destroyed . | . . . . . . . . . . . . . . . . . . . . . . Combat | -11 -10 -10 -9 -9 -9 -8 -8 -8 -8 -8 -7 -7 -6 -6 -6 -6 -6 -6 -6 -6 -5 -------- Run | Yrd Mat Min Mat Min Exi Min Mat Gar Mat Gar Fac Gar Fac Was Fac Ext Cet Arc Hub Gar Fac Hostile Shots Fired 1352 | . 65 33 104 38 . 11 6 52 76 119 118 113 194 1 12 60 30 3 46 169 102 Missed 409 | . 21 6 26 6 . 7 2 13 16 40 45 41 55 1 3 30 10 1 15 39 32 Damage Taken 13901 | . 503 272 1011 945 . 42 45 325 772 826 856 959 2315 3 208 304 416 42 429 2194 1434 Core 1717 | . 94 47 178 102 . 9 . 35 97 135 92 63 243 . 22 50 74 . 101 259 116 Absorbed by Shields 1057 | . . . . 68 . 18 16 126 131 79 . . 478 . . 42 99 . . . . Redirected to Shielding 101 | . . . . . . . . . . . 101 . . . . . . . . . . Ignored by Resistances 11 | . . . . . . . . . . . . . 11 . . . . . . . . Regen/Repaired (Parts) 1784 | . . . 245 . . . . . 114 . 475 . . 203 . 104 134 . 5 . 504 Core Remaining (%) 51 | 100 . 43 . . . 27 . . . 51 . 77 . . . . . . . 11 . Volleys Fired 632 | 25 59 27 79 10 . 9 11 24 50 29 24 28 51 . 6 24 16 3 12 117 28 Largest 4 | 2 2 2 2 2 . 2 3 3 3 3 4 4 4 . 4 4 4 4 4 4 4 Hottest 128 | 40 60 40 50 50 . 50 75 75 73 75 96 94 96 . 109 114 128 128 128 128 122 Shots Fired 1820 | 50 114 54 157 20 . 18 33 72 151 88 96 112 132 . 24 89 64 12 48 390 96 Gun 1792 | 50 114 54 157 20 . 18 33 72 151 88 96 112 132 . 24 86 64 12 48 370 91 Cannon . | . . . . . . . . . . . . . . . . . . . . . . Launcher . | . . . . . . . . . . . . . . . . . . . . . . Special 28 | . . . . . . . . . . . . . . . . 3 . . . 20 5 Kinetic 1776 | 50 98 54 157 20 . 18 33 72 151 88 96 112 132 . 24 86 64 12 48 370 91 Thermal 16 | . 16 . . . . . . . . . . . . . . . . . . . . Explosive . | . . . . . . . . . . . . . . . . . . . . . . Electromagnetic . | . . . . . . . . . . . . . . . . . . . . . . Robot Hit Streak 40 | 9 10 10 10 4 . 3 6 9 19 8 10 15 27 . 13 40 10 6 7 28 9 Robot Miss Streak 10 | 3 4 3 7 5 . 4 10 3 3 8 3 3 3 . 1 2 3 2 3 5 7 Penetration Max 1 | . . . . . . . . . . . . . . . 1 1 1 . 1 1 1 Secondary Targets 50 | . 4 2 4 1 . 1 1 3 . 8 2 4 3 . . . 3 . 2 10 2 Max Gunslinging Chain 2 | . 1 1 1 1 . 1 1 1 . 1 1 2 1 . . . 1 . 1 1 1 Shots Hit Robots 1224 | 31 70 39 112 12 . 12 23 43 106 55 68 74 126 . 18 71 46 8 28 232 50 Core Hits 543 | 11 32 17 51 8 . 12 11 25 48 36 37 37 45 . 9 19 30 2 15 74 24 Critical Kills 18 | . . . 3 1 . 2 . . . . 1 1 . . 1 . 3 . 1 4 1 Critical Parts Destroyed 31 | . 1 . 4 . . 1 . . 2 1 . . 5 . . . 3 . 3 8 3 Critical Strikes 50 | . 1 . 7 1 . 3 . . 2 1 1 1 5 . 1 . 6 . 4 13 4 Destroy 48 | . 1 . 7 1 . 3 . . 2 1 1 1 3 . 1 . 6 . 4 13 4 Smash 2 | . . . . . . . . . . . . . 2 . . . . . . . . Melee Attacks 109 | . . . . . . . 17 7 2 1 . 20 45 . . 6 3 . 1 7 . Impact 78 | . . . . . . . 3 7 2 1 . 20 45 . . . . . . . . Slashing 14 | . . . . . . . 14 . . . . . . . . . . . . . . Piercing 17 | . . . . . . . . . . . . . . . . 6 3 . 1 7 . Sneak Attacks 3 | . . . . . . . . . . . . . 1 . . 2 . . . . . Combat Hostiles . | . . . . . . . . . . . . . . . . . . . . . . Follow-up Attacks . | . . . . . . . . . . . . . . . . . . . . . . Damage Inflicted 22445 | 308 872 486 2014 215 . 251 389 738 1536 1042 1086 1199 2848 . 381 1643 1145 223 725 4297 1047 Guns 21116 | 308 872 486 2014 215 . 251 389 738 1536 1042 1086 1199 1738 . 381 1424 1145 223 725 4297 1047 Cannons . | . . . . . . . . . . . . . . . . . . . . . . Explosions . | . . . . . . . . . . . . . . . . . . . . . . Melee 1329 | . . . . . . . . . . . . . 1110 . . 219 . . . . . Ramming . | . . . . . . . . . . . . . . . . . . . . . . Kinetic 21014 | 308 770 486 2014 215 . 251 389 738 1536 1042 1086 1199 1738 . 381 1424 1145 223 725 4297 1047 Thermal 102 | . 102 . . . . . . . . . . . . . . . . . . . . Explosive . | . . . . . . . . . . . . . . . . . . . . . . Electromagnetic . | . . . . . . . . . . . . . . . . . . . . . . Impact 1110 | . . . . . . . . . . . . . 1110 . . . . . . . . Slashing . | . . . . . . . . . . . . . . . . . . . . . . Piercing 219 | . . . . . . . . . . . . . . . . 219 . . . . . Highest Corruption 11 | . . . . . . . . . 2 2 2 4 9 9 11 11 11 . . . . Average Corruption 5 | . . . . . . . . . 1 2 1 3 5 9 10 11 2 . . . . Corruption Purged 12 | . . . . . . . . . . . . . . . 1 . 11 . . . . Corruption Blocked . | . . . . . . . . . . . . . . . . . . . . . . Effects 242 | . . . . . . . . . 17 19 13 26 34 15 50 65 3 . . . . Message Errors 59 | . . . . . . . . . 5 4 3 6 12 4 15 10 . . . . . Matter Fused 62 | . . . . . . . . . 3 5 4 10 8 3 11 17 1 . . . . Heat Flow Errors 29 | . . . . . . . . . 2 2 3 5 4 2 4 7 . . . . . Energy Discharges 24 | . . . . . . . . . 2 1 1 3 2 1 5 8 1 . . . . Parts Rejected 3 | . . . . . . . . . 1 . . . . 1 1 . . . . . . Parts Fused 2 | . . . . . . . . . . . . . . . 1 1 . . . . . Data Loss (minor) 31 | . . . . . . . . . 1 4 . 2 7 3 3 10 1 . . . . Data Loss (major) 14 | . . . . . . . . . 2 1 2 . . . 4 5 . . . . . Misfires 8 | . . . . . . . . . 1 1 . . 1 . 2 3 . . . . . Alerts 5 | . . . . . . . . . . 1 . . . 1 3 . . . . . . Misdirections 4 | . . . . . . . . . . . . . . . 1 3 . . . . . Weapon Failures 1 | . . . . . . . . . . . . . . . . 1 . . . . . Overload Shots . | . . . . . . . . . . . . . . . . . . . . . . Overflow Damage 254 | . . . . . . . . . . . . . 198 . . 56 . . . . . Projectiles . | . . . . . . . . . . . . . . . . . . . . . . Explosions . | . . . . . . . . . . . . . . . . . . . . . . Melee 254 | . . . . . . . . . . . . . 198 . . 56 . . . . . Knockbacks 12 | . . . . . . . . . . . . . 12 . . . . . . . . Impact 12 | . . . . . . . . . . . . . 12 . . . . . . . . Kinetic . | . . . . . . . . . . . . . . . . . . . . . . Secondary . | . . . . . . . . . . . . . . . . . . . . . . Self-Inflicted Damage . | . . . . . . . . . . . . . . . . . . . . . . Shots . | . . . . . . . . . . . . . . . . . . . . . . Rammed . | . . . . . . . . . . . . . . . . . . . . . . Targets Rammed . | . . . . . . . . . . . . . . . . . . . . . . Kicked . | . . . . . . . . . . . . . . . . . . . . . . Crushed . | . . . . . . . . . . . . . . . . . . . . . . Highest Temperature 378 | . 36 6 24 9 . . 86 106 189 158 212 265 242 160 231 272 192 102 158 378 80 Average Temperature 55 | . 10 2 9 6 . . 32 35 17 25 44 52 95 87 67 78 76 45 47 79 23 Received Heat Transfer 3198 | . 216 102 498 30 . 24 24 122 138 288 192 150 550 . 15 72 27 . 42 426 282 Effects 1 | . . . . . . . . . . . . . . . . . . . . 1 . Matter Decay 1 | . . . . . . . . . . . . . . . . . . . . 1 . Siege Activations . | . . . . . . . . . . . . . . . . . . . . . . Robots Corrupted . | . . . . . . . . . . . . . . . . . . . . . . Combat Hostiles . | . . . . . . . . . . . . . . . . . . . . . . Parts Fried 3 | . . . . . . . . . . . . . 3 . . . . . . . . Impact Corruptions 10 | . . . . . . . . . . . . . 10 . . . . . . . . Robots Melted . | . . . . . . . . . . . . . . . . . . . . . . Combat Hostiles . | . . . . . . . . . . . . . . . . . . . . . . Parts Melted 2 | . . . . . . 1 . . . . . . . . 1 . . . . . . Heat Transferred 225 | . 225 . . . . . . . . . . . . . . . . . . . . Parts Sabotaged 6 | . . . . . . . . . . . . . . . . . . . . . 6 Parts Stolen . | . . . . . . . . . . . . . . . . . . . . . . Parts Stripped . | . . . . . . . . . . . . . . . . . . . . . . Power Chain Reactions . | . . . . . . . . . . . . . . . . . . . . . . Alert | -11 -10 -10 -9 -9 -9 -8 -8 -8 -8 -8 -7 -7 -6 -6 -6 -6 -6 -6 -6 -6 -5 ------- Run | Yrd Mat Min Mat Min Exi Min Mat Gar Mat Gar Fac Gar Fac Was Fac Ext Cet Arc Hub Gar Fac Peak Influence 3513 | 35 351 223 399 138 . 124 107 506 374 537 326 670 425 109 588 620 618 472 788 3513 2187 Initial 1843 | . 22 . 86 105 . . 48 2 246 52 281 119 351 55 . 245 322 247 165 537 1843 Average 439 | 21 127 112 246 100 . 107 38 256 240 229 198 340 190 69 196 387 442 450 460 1514 1920 Maximum Alert Level 5 | . 1 1 1 . . . . 2 1 2 1 2 2 . 2 2 2 2 3 5 5 Low Security (%) 45 | 100 83 83 25 100 . 100 100 58 32 75 57 26 66 100 50 . . . 5 . . Level 1 27 | . 16 16 74 . . . . 6 67 8 42 45 23 . 34 56 48 12 43 . . Level 2 13 | . . . . . . . . 34 . 16 . 27 10 . 15 42 51 87 36 23 . Level 3 2 | . . . . . . . . . . . . . . . . . . . 13 17 . Level 4 2 | . . . . . . . . . . . . . . . . . . . . 19 . Level 5 7 | . . . . . . . . . . . . . . . . . . . . 39 77 High Security . | . . . . . . . . . . . . . . . . . . . . . 22 Max Security . | . . . . . . . . . . . . . . . . . . . . . . Squads Dispatched 45 | . 2 1 3 . . . 2 . 5 . 2 . 10 . 3 1 . . 6 . 10 Investigation 16 | . 1 . 1 . . . . . 3 . 1 . 5 . 2 . . . 3 . . Extermination 4 | . . . . . . . . . . . 1 . 2 . 1 . . . . . . Reinforcement 13 | . 1 . 2 . . . 2 . 2 . . . 3 . . 1 . . 1 . 1 Assault 11 | . . 1 . . . . . . . . . . . . . . . . 2 . 8 Garrison 1 | . . . . . . . . . . . . . . . . . . . . . 1 Intercept . | . . . . . . . . . . . . . . . . . . . . . . Searches Triggered . | . . . . . . . . . . . . . . . . . . . . . . Construction Impeded 2 | . . . . . . . 1 . . . . . . . . . . . . . 1 Haulers Reinforced . | . . . . . . . . . . . . . . . . . . . . . . Active Scanning Responses . | . . . . . . . . . . . . . . . . . . . . . . Cargo Convoy Interrupts . | . . . . . . . . . . . . . . . . . . . . . . Alert ID Control Effect 9 | . . . . . . . . . . . . . . . . . . . . 3 6 Stealth | -11 -10 -10 -9 -9 -9 -8 -8 -8 -8 -8 -7 -7 -6 -6 -6 -6 -6 -6 -6 -6 -5 --------- Run | Yrd Mat Min Mat Min Exi Min Mat Gar Mat Gar Fac Gar Fac Was Fac Ext Cet Arc Hub Gar Fac Distress Signals 19 | . 2 2 2 . . . 2 . 2 . . . . . . 2 2 . 3 1 1 Communications Jammed 81 | . . . . . . . . . . . . . . . . 55 . . 26 . . Distress Signals 81 | . . . . . . . . . . . . . . . . 55 . . 26 . . Times Spotted 432 | . 23 14 34 17 . 5 10 16 39 20 16 16 23 5 17 29 19 4 18 53 54 Peak Tracking Total 28 | . 6 7 6 11 . 3 4 5 4 8 4 4 3 4 4 6 7 2 7 15 28 Tactical Retreats 19 | . . . 1 . . . 3 2 5 1 . 1 3 . . 1 . . . . 2 Traps | -11 -10 -10 -9 -9 -9 -8 -8 -8 -8 -8 -7 -7 -6 -6 -6 -6 -6 -6 -6 -6 -5 ------- Run | Yrd Mat Min Mat Min Exi Min Mat Gar Mat Gar Fac Gar Fac Was Fac Ext Cet Arc Hub Gar Fac Traps Triggered 35 | . 1 . . . . . . 1 6 2 3 5 7 . 3 2 . . 1 4 . Indirectly . | . . . . . . . . . . . . . . . . . . . . . . Trap Hack Attempts . | . . . . . . . . . . . . . . . . . . . . . . Triggered . | . . . . . . . . . . . . . . . . . . . . . . Disarmed . | . . . . . . . . . . . . . . . . . . . . . . Reprogrammed . | . . . . . . . . . . . . . . . . . . . . . . Reused . | . . . . . . . . . . . . . . . . . . . . . . Traps Extracted . | . . . . . . . . . . . . . . . . . . . . . . Installed . | . . . . . . . . . . . . . . . . . . . . . . Triggered . | . . . . . . . . . . . . . . . . . . . . . . Machines | -11 -10 -10 -9 -9 -9 -8 -8 -8 -8 -8 -7 -7 -6 -6 -6 -6 -6 -6 -6 -6 -5 ---------- Run | Yrd Mat Min Mat Min Exi Min Mat Gar Mat Gar Fac Gar Fac Was Fac Ext Cet Arc Hub Gar Fac Machines Disabled 38 | . 1 . 1 . . . . 2 . . . 1 1 . 3 3 . 3 3 16 4 Max in Single Turn 2 | . 1 . 1 . . . . 2 . . . 1 1 . . . . 1 2 2 1 Garrison Access 6 | . . . . . . . . . . . 2 . 2 . 1 . . . 1 . . Garrison Relay 9 | . . . . . . . . . . . . . . . . . . . . 9 . Phase Generator 2 | . . . . . . . . 1 . . . . . . . . . . . 1 . Network Hub 2 | . . . . . . . . . . . . . . . . . . . 2 . . Machines Repaired . | . . . . . . . . . . . . . . . . . . . . . . Machines Dismantled . | . . . . . . . . . . . . . . . . . . . . . . Machines Sabotaged 1 | . . . . . . . . . . . . . . . . . . . 1 . . Overloaded Fab Kills . | . . . . . . . . . . . . . . . . . . . . . . Hacking | -11 -10 -10 -9 -9 -9 -8 -8 -8 -8 -8 -7 -7 -6 -6 -6 -6 -6 -6 -6 -6 -5 --------- Run | Yrd Mat Min Mat Min Exi Min Mat Gar Mat Gar Fac Gar Fac Was Fac Ext Cet Arc Hub Gar Fac Machines Accessed 78 | . 3 . 6 . 2 . 6 2 9 . 10 1 17 . 7 6 1 . 5 2 1 Terminals 43 | . 2 . 3 . . . 3 2 4 . 3 1 9 . 2 6 1 . 4 2 1 Fabricators 2 | . . . . . . . . . . . . . 2 . . . . . . . . Repair Stations 9 | . 1 . 2 . . . . . 2 . 2 . 2 . . . . . . . . Recycling Units 10 | . . . 1 . . . 1 . 1 . 2 . 2 . 3 . . . . . . Scanalyzers 3 | . . . . . . . 1 . 1 . . . . . 1 . . . . . . Garrison Access 9 | . . . . . . . 1 . 1 . 3 . 2 . 1 . . . 1 . . Total Hacks 195 | . 7 . 14 . 2 . 28 4 28 . 24 2 34 . 15 14 4 . 8 6 5 Successful 94 | . 4 . 11 . 2 . 19 . 14 . 17 1 10 . 7 3 . . 5 . 1 Failed 101 | . 3 . 3 . . . 9 4 14 . 7 1 24 . 8 11 4 . 3 6 4 Catastrophic 28 | . . . 1 . . . 1 2 5 . 1 . 6 . 2 3 1 . 1 3 2 Database Lockouts . | . . . . . . . . . . . . . . . . . . . . . . Manual 46 | . 4 . 5 . 1 . 7 . 14 . 1 . 2 . . 4 1 . 7 . . Terminals 109 | . 5 . 6 . . . 12 4 15 . 4 2 20 . 5 14 4 . 7 6 5 Fabricators 4 | . . . . . . . . . . . . . 4 . . . . . . . . Repair Stations 34 | . 2 . 6 . . . . . 8 . 13 . 5 . . . . . . . . Recycling Units 18 | . . . 2 . . . 4 . 1 . 4 . 3 . 4 . . . . . . Scanalyzers 18 | . . . . . . . 10 . 3 . . . . . 5 . . . . . . Garrison Access 10 | . . . . . . . 2 . 1 . 3 . 2 . 1 . . . 1 . . Terminal Hacks 25 | . 2 . 3 . 2 . 3 . 5 . 1 1 3 . . 3 . . 1 . 1 Record 1 | . . . . . 1 . . . . . . . . . . . . . . . . Part Schematic 2 | . 1 . . . . . . . 1 . . . . . . . . . . . . Robot Analysis 3 | . . . . . . . . . 2 . . . 1 . . . . . . . . Open Door 3 | . . . . . . . . . . . . . . . . 3 . . . . . Branch Access Points 2 | . . . . . . . . . . . . . 1 . . . . . . . 1 Emergency Access Points 3 | . . . . . . . . . . . 1 1 . . . . . . 1 . . Terminal Index 1 | . . . . . . . 1 . . . . . . . . . . . . . . Alert Level 4 | . 1 . 2 . . . 1 . . . . . . . . . . . . . . Unreport Threat 3 | . . . 1 . . . . . 2 . . . . . . . . . . . . Dispatch Records 1 | . . . . . . . 1 . . . . . . . . . . . . . . Hauler Manifests 1 | . . . . . . . . . . . . . 1 . . . . . . . . Derelict Proto ID Bank 1 | . . . . . 1 . . . . . . . . . . . . . . . . Fabricator Hacks 2 | . . . . . . . . . . . . . 2 . . . . . . . . Network Status 1 | . . . . . . . . . . . . . 1 . . . . . . . . Load Schematic 1 | . . . . . . . . . . . . . 1 . . . . . . . . Repair Station Hacks 20 | . . . 6 . . . . . 3 . 9 . 2 . . . . . . . . Scan Component 12 | . . . 3 . . . . . 2 . 5 . 2 . . . . . . . . Repair 8 | . . . 3 . . . . . 1 . 4 . . . . . . . . . . Recycling Unit Hacks 12 | . . . 2 . . . 2 . 1 . 3 . 1 . 3 . . . . . . Report Inventory 9 | . . . 1 . . . 1 . 1 . 2 . 1 . 3 . . . . . . Retrieve Components 3 | . . . 1 . . . 1 . . . 1 . . . . . . . . . . Scanalyzer 16 | . . . . . . . 10 . 3 . . . . . 3 . . . . . . Insert Component 8 | . . . . . . . 5 . 1 . . . . . 2 . . . . . . Analyze 8 | . . . . . . . 5 . 2 . . . . . 1 . . . . . . Garrison Access Hacks 9 | . . . . . . . 1 . 1 . 3 . 2 . 1 . . . 1 . . Unlock Access 4 | . . . . . . . 1 . 1 . 1 . . . . . . . 1 . . Seal Access 5 | . . . . . . . . . . . 2 . 2 . 1 . . . . . . Unauthorized Hacks 10 | . 2 . . . . . 3 . 1 . 1 . . . . . . . 3 . . Terminals 10 | . 2 . . . . . 3 . 1 . 1 . . . . . . . 3 . . Assimilate 2 | . . . . . . . . . 1 . 1 . . . . . . . . . . Botnet 3 | . 1 . . . . . 2 . . . . . . . . . . . . . . Operators 2 | . 1 . . . . . 1 . . . . . . . . . . . . . . Sabotage 3 | . . . . . . . . . . . . . . . . . . . 3 . . Fabricators . | . . . . . . . . . . . . . . . . . . . . . . Repair Stations . | . . . . . . . . . . . . . . . . . . . . . . Recycling Units . | . . . . . . . . . . . . . . . . . . . . . . Scanalyzers . | . . . . . . . . . . . . . . . . . . . . . . Garrison Access . | . . . . . . . . . . . . . . . . . . . . . . Data Cores Recovered 1 | . . . . . . . . . . . . . . . 1 . . . . . . Used . | . . . . . . . . . . . . . . . . . . . . . . Hacking Detections 52 | . 3 . 5 . . . 5 2 7 . 4 1 12 . 3 4 2 . 1 2 1 Full Trace Events 14 | . . . 1 . . . . 1 3 . 1 . 5 . 2 . . . . 1 . Feedback Events 2 | . . . . . . . . . . . 1 . 1 . . . . . . . . Corruption 2 | . . . . . . . . . . . 1 . 1 . . . . . . . . Feedback Blocked . | . . . . . . . . . . . . . . . . . . . . . . Robot Schematics Acquired . | . . . . . . . . . . . . . . . . . . . . . . Robots Built . | . . . . . . . . . . . . . . . . . . . . . . Authchips . | . . . . . . . . . . . . . . . . . . . . . . Time . | . . . . . . . . . . . . . . . . . . . . . . Total Robot Build Rating . | . . . . . . . . . . . . . . . . . . . . . . Part Schematics Acquired 8 | . 1 . . . . . 5 . 2 . . . . . . . . . . . . Parts Built . | . . . . . . . . . . . . . . . . . . . . . . Authchips . | . . . . . . . . . . . . . . . . . . . . . . Time . | . . . . . . . . . . . . . . . . . . . . . . Total Part Build Rating . | . . . . . . . . . . . . . . . . . . . . . . Parts Repaired 8 | . . . 3 . . . . . 1 . 4 . . . . . . . . . . Time 331 | . . . 102 . . . . . 38 . 191 . . . . . . . . . . Parts Recycled . | . . . . . . . . . . . . . . . . . . . . . . Recycled Matter . | . . . . . . . . . . . . . . . . . . . . . . Retrieved Matter . | . . . . . . . . . . . . . . . . . . . . . . Retrieved Components 14 | . . . 3 . . . 1 . . . 10 . . . . . . . . . . Parts Scanalyzed 7 | . . . . . . . 5 . 1 . . . . . 1 . . . . . . Part Schematics Acquired 6 | . . . . . . . 5 . 1 . . . . . . . . . . . . Parts Damaged 1 | . . . . . . . . . . . . . . . 1 . . . . . . Bothacking | -11 -10 -10 -9 -9 -9 -8 -8 -8 -8 -8 -7 -7 -6 -6 -6 -6 -6 -6 -6 -6 -5 ------------ Run | Yrd Mat Min Mat Min Exi Min Mat Gar Mat Gar Fac Gar Fac Was Fac Ext Cet Arc Hub Gar Fac Used RIF Installer 5 | . . . . . . . . 2 . 1 . 1 . . . . . . . 1 . Code Merge 1 | . . . . . . . . . . . . . . . . . . . . 1 . Zone Cloak 1 | . . . . . . . . . . 1 . . . . . . . . . . . Alert ID Control 1 | . . . . . . . . . . . . 1 . . . . . . . . . Program Shield 1 | . . . . . . . . 1 . . . . . . . . . . . . . Robots Hacked 4 | . . . . . . . . . . . . . . . . 1 . . . . 3 Non-combat 2 | . . . . . . . . . . . . . . . . 1 . . . . 1 Combat 2 | . . . . . . . . . . . . . . . . . . . . . 2 Robot Hacks Applied 6 | . . . . . . . . . . . . . . . . 3 . . . . 3 purge_threat 1 | . . . . . . . . . . . . . . . . 1 . . . . . block_reporting 1 | . . . . . . . . . . . . . . . . 1 . . . . . amplify_resonance 1 | . . . . . . . . . . . . . . . . . . . . . 1 formatsys_low 2 | . . . . . . . . . . . . . . . . 1 . . . . 1 formatsys_high 1 | . . . . . . . . . . . . . . . . . . . . . 1 Relay Couplers Released 39 | . . . . . . . . . . . . 4 . . . . . . 1 34 . Machine Destruction 35 | . . . . . . . . . . . . . . . . . . . 1 34 . Programmers 4 | . . . . . . . . . . . . 4 . . . . . . . . . Attached 7 | . . . . . . . . . . . . . . . . 1 . . . 4 2 Merged Code Value 61 | . . . . . . . . . . . . . . . . . . . . 61 . Fabnet Peak Effective % . | . . . . . . . . . . . . . . . . . . . . . . Robots Rewired 29 | . . . . . . . . 3 . . . . . . . 14 . . . 12 . Allies Hacked . | . . . . . . . . . . . . . . . . . . . . . . Hacks Repelled . | . . . . . . . . . . . . . . . . . . . . . . Allies | -11 -10 -10 -9 -9 -9 -8 -8 -8 -8 -8 -7 -7 -6 -6 -6 -6 -6 -6 -6 -6 -5 -------- Run | Yrd Mat Min Mat Min Exi Min Mat Gar Mat Gar Fac Gar Fac Was Fac Ext Cet Arc Hub Gar Fac Total Allies 73 | . . 1 . 3 . . . 3 . . . 2 . 19 . 22 5 . . 16 2 Largest Group 19 | . . 1 . 3 2 1 . 3 3 . . 2 . 19 14 17 13 8 7 11 5 Highest-Rated Group 702 | . . 31 . 40 24 16 . 15 15 . . 190 . 684 559 484 702 702 543 319 208 Highest-Rated Ally 159 | . . 31 . 16 16 16 . 5 5 . . 95 . 50 50 159 159 159 96 119 119 Total Orders 2 | . . . . . . . . . . . . . . . . . . . 1 . 1 STAY 1 | . . . . . . . . . . . . . . . . . . . 1 . . AID 1 | . . . . . . . . . . . . . . . . . . . . . 1 Ally Attacks 747 | . . 13 . 40 . 1 . . 27 . . 9 . 63 94 153 103 27 76 113 28 Total Damage 20912 | . . 188 . 317 . 17 . . 149 . . 545 . 2786 2346 3503 2591 946 2587 3321 1616 Kills 132 | . . 1 . 5 . . . . 2 . . 1 . 9 21 27 13 3 19 20 11 Allies Corrupted 5 | . . . . . . . . . . . . . . . 2 1 . . 2 . . Allies Melted . | . . . . . . . . . . . . . . . . . . . . . . Intel | -11 -10 -10 -9 -9 -9 -8 -8 -8 -8 -8 -7 -7 -6 -6 -6 -6 -6 -6 -6 -6 -5 ------- Run | Yrd Mat Min Mat Min Exi Min Mat Gar Mat Gar Fac Gar Fac Was Fac Ext Cet Arc Hub Gar Fac Robot Analysis Total 3 | . . . . . . . . . 2 . . . 1 . . . . . . . . Derelict Logs Recovered . | . . . . . . . . . . . . . . . . . . . . . . Drone Launches . | . . . . . . . . . . . . . . . . . . . . . . Drone Recoveries . | . . . . . . . . . . . . . . . . . . . . . . Exploration | -11 -10 -10 -9 -9 -9 -8 -8 -8 -8 -8 -7 -7 -6 -6 -6 -6 -6 -6 -6 -6 -5 ------------- Run | Yrd Mat Min Mat Min Exi Min Mat Gar Mat Gar Fac Gar Fac Was Fac Ext Cet Arc Hub Gar Fac Turns Passed 27058 | 245 1338 371 1340 473 338 382 1892 1080 2679 1370 1952 1238 3299 468 1305 1461 617 288 641 3486 795 Spaces Moved 14521 | 83 590 182 719 328 281 246 750 670 1364 567 1052 710 1835 307 941 815 233 142 304 1923 479 Core 6 | . . . . . . . . . . 6 . . . . . . . . . . . Treads . | . . . . . . . . . . . . . . . . . . . . . . Legs 14515 | 83 590 182 719 328 281 246 750 670 1364 561 1052 710 1835 307 941 815 233 142 304 1923 479 Wheels . | . . . . . . . . . . . . . . . . . . . . . . Hover . | . . . . . . . . . . . . . . . . . . . . . . Flight . | . . . . . . . . . . . . . . . . . . . . . . Fastest Speed 120 | 120 120 120 120 120 120 120 120 120 120 123 123 120 120 120 120 120 120 190 120 120 120 Average Speed 129 | 120 173 140 120 120 120 120 120 120 121 137 134 122 131 129 120 120 142 190 176 123 128 Slowest Speed 400 | 120 190 190 190 190 120 120 120 120 200 400 195 123 190 190 120 120 190 190 190 190 190 Overloaded Moves . | . . . . . . . . . . . . . . . . . . . . . . Propulsion Burnouts . | . . . . . . . . . . . . . . . . . . . . . . Robots Hopped . | . . . . . . . . . . . . . . . . . . . . . . Cave-ins Triggered 1 | . . . . . . . . . . . . . 1 . . . . . . . . Exploration Rate (%) 59 | 5 81 52 52 76 69 62 52 68 86 44 33 77 43 93 29 86 67 95 25 98 12 Regions Visited 21 Branch Regions 8 Pre-discovered Areas 1 | . . . . . 1 . . . . . . . . . . . . . . . . Known Exits Taken 5 | . . . . . . . 1 . 1 . 1 . . . 1 . . . 1 . . Unknown Exits Taken 10 | 1 1 1 1 1 1 1 . . . . . . . . . 1 1 1 . . . Scrap Searched 2 | . . 1 . . . 1 . . . . . . . . . . . . . . . Spaces Dug 41 | . . . . . . . 17 2 2 . . . 11 . . 4 1 . 1 3 . Terrain Destroyed 233 | . . . . . . . 17 77 2 . . . 11 . 2 8 3 3 9 75 26 Melee 38 | . . . . . . . 17 2 2 . . . 11 . . 2 1 . 1 2 . Projectile 58 | . . . . . . . . . . . . . . . 2 4 2 3 8 13 26 AOE 132 | . . . . . . . . 75 . . . . . . . . . . . 57 . Terrain Rammed . | . . . . . . . . . . . . . . . . . . . . . . Walls Destroyed . | . . . . . . . . . . . . . . . . . . . . . . Machines Disabled . | . . . . . . . . . . . . . . . . . . . . . . Actions | -11 -10 -10 -9 -9 -9 -8 -8 -8 -8 -8 -7 -7 -6 -6 -6 -6 -6 -6 -6 -6 -5 --------- Run | Yrd Mat Min Mat Min Exi Min Mat Gar Mat Gar Fac Gar Fac Was Fac Ext Cet Arc Hub Gar Fac Total 21303 | 183 788 244 1036 386 282 314 1697 890 2269 1089 1522 973 2563 378 1100 1230 469 153 374 2771 592 Wait 5333 | 75 120 27 177 43 . 52 888 165 812 481 399 176 591 60 117 220 199 9 52 613 57 Move 14503 | 82 589 181 718 327 280 245 749 669 1364 566 1052 708 1835 306 940 814 232 141 304 1922 479 Hop . | . . . . . . . . . . . . . . . . . . . . . . Pick Up 53 | . 3 1 8 . 1 2 8 1 7 . 5 3 . 2 1 3 . . . 7 1 Fast Attach 129 | 1 3 2 14 . . . 5 1 13 2 18 1 14 4 12 6 5 . 2 15 11 Attach 32 | . . . 4 5 . . 4 . 3 1 2 . 4 . 3 . . . . 5 1 Detach 13 | . . . . . . . 2 1 1 . 1 . . 3 1 . 1 . . 3 . Swap 125 | . 7 2 14 1 . 4 2 3 6 5 7 15 5 1 8 11 8 . 3 15 8 Drop 134 | . 7 4 22 . 1 2 11 1 11 . 14 4 8 2 12 11 5 . . 12 7 Fire 632 | 25 59 27 79 10 . 9 11 24 50 29 24 28 51 . 6 24 16 3 12 117 28 Melee 109 | . . . . . . . 17 7 2 1 . 20 45 . . 6 3 . 1 7 . Ram . | . . . . . . . . . . . . . . . . . . . . . . Kick . | . . . . . . . . . . . . . . . . . . . . . . Crush . | . . . . . . . . . . . . . . . . . . . . . . Escape Stasis 67 | . . . . . . . . 5 . 4 . 18 10 . . 10 . . . 20 . Rewire 173 | . . . . . . . . 13 . . . . . . . 125 . . . 35 . Trap . | . . . . . . . . . . . . . . . . . . . . . . Miscellaneous . | . . . . . . . . . . . . . . . . . . . . . . Route ------- -11/Scrapyard -10/Materials (discovered 5 exits: *Mat x3 / [*Min x2]) -10/Mines -9/Materials (discovered 3 exits: *Mat / [*Min] / [*Sto]) -9/Mines (discovered 2 exits: *Mat / *Exi) -9/Exiles -8/Mines -8/Materials (discovered 3 exits: *Fac x2 / Gar) -8/Garrison (discovered 4 exits: *Fac x3 / *Mat) -8/Materials (discovered 4 exits: *Fac x3 / Gar) -8/Garrison (discovered 3 exits: *Fac x3) -7/Factory (discovered 3 exits: *Fac / [*Low] / Gar) -7/Garrison (discovered 3 exits: *Fac x3) -6/Factory (discovered 6 exits: *Fac x2 / *Low x2 / *Ext x2) -6/Waste -6/Factory (discovered 2 exits: *Low / *Ext) -6/Extension (discovered 2 exits: *Fac / *Cet) -6/Cetus (discovered 2 exits: *Fac / *Arc) -6/Archives (discovered 3 exits: *Fac / *Hub x2) -6/Hub_04(d) (discovered 2 exits: *Fac / Gar) -6/Garrison (discovered 3 exits: *Fac x3) -5/Factory (discovered 2 exits: Upp x2) History --------- Turn | Location | Event 1 | -11/Scrapyard | Discovered new exit (range 3) 246 | -11/Scrapyard | Entered Materials 246 | -10/Materials | Discovered new exit (range 14) 302 | -10/Materials | Build established: Mutant 364 | -10/Materials | Discovered new exit (range 8) 480 | -10/Materials | Destroyed 8 combat bots 671 | -10/Materials | Discovered new exit (range 14) 909 | -10/Materials | Discovered new exit (range 13) 1311 | -10/Materials | Discovered new exit (range 16) 1584 | -10/Materials | Entered Mines 1585 | -10/Mines | Met a Derelict testing a Signal Generator 1633 | -10/Mines | Excavation squad dispatched 1633 | -10/Mines | A large section of the Mines collapsed 1883 | -10/Mines | Excavation squad dispatched 1890 | -10/Mines | Core integrity fell below 50% 1943 | -10/Mines | Discovered new exit (range 9) 1955 | -10/Mines | Entered Materials 1955 | -9/Materials | Evolved 2 slots: Propulsion x1, Utility x1 2137 | -9/Materials | Repaired Assault Rifle 2292 | -9/Materials | Destroyed 7 combat bots 2388 | -9/Materials | Discovered new exit (range 8) 2559 | -9/Materials | Discovered new exit (range 14) 2858 | -9/Materials | Repaired Hpw. Shotgun 2897 | -9/Materials | Repaired Hpw. Shotgun? 3094 | -9/Materials | Discovered new exit (range 4) 3295 | -9/Materials | Entered Mines 3296 | -9/Mines | Assembled infested the area 3301 | -9/Mines | Assisted by a Guerilla fighting off Assembled 3342 | -9/Mines | Core integrity fell below 50% 3375 | -9/Mines | Assisted by bots powering up and referring to "LRC-V3" 3383 | -9/Mines | Lost 3 parts (1n1u1w) 3472 | -9/Mines | Found a hidden stash of uninstalled traps 3728 | -9/Mines | Discovered new exit (range 10) 3752 | -9/Mines | Deemed a non-threat by the Exiles lab entrance 3752 | -9/Mines | Discovered new exit (range 5) 3768 | -9/Mines | Entered Exiles 3768 | -9/Exiles | Accompanied by 2 allies 3797 | -9/Exiles | Met 8R-AWN 3816 | -9/Exiles | Met EX-HEX 3850 | -9/Exiles | Met EX-BIN 3864 | -9/Exiles | Aligned with FarCom system 3866 | -9/Exiles | Given EX-Vault access code 3894 | -9/Exiles | Opened EX-Vault 3926 | -9/Exiles | Warned to stay clear of 0b10 Research branches 4002 | -9/Exiles | Met EX-DEC 4023 | -9/Exiles | Learned location of Zion (-6) 4094 | -9/Exiles | Discovered new exit (range 10) 4106 | -9/Exiles | Entered Mines 4106 | -8/Mines | Accompanied by 2 allies 4478 | -8/Mines | Discovered new exit (range 8) 4488 | -8/Mines | Entered Materials 4488 | -8/Materials | Evolved 2 slots: Utility x1, Weapon x1 4879 | -8/Materials | Discovered new exit (range 5) 5266 | -8/Materials | Discovered new exit (range 5) 6377 | -8/Materials | Identified exit to Garrison 6380 | -8/Materials | Entered Garrison 6502 | -8/Garrison | Triggered checkpoint 6675 | -8/Garrison | Discovered new exit (range 15) 6787 | -8/Garrison | Installed Relay Interface Framework 6822 | -8/Garrison | Triggered checkpoint 7009 | -8/Garrison | Phase Generator disabled 7014 | -8/Garrison | Discovered new exit (range 3) 7080 | -8/Garrison | Triggered checkpoint 7379 | -8/Garrison | Expanded RIF knowledge: Program Shield 7409 | -8/Garrison | Discovered new exit (range 9) 7426 | -8/Garrison | Triggered checkpoint 7436 | -8/Garrison | Discovered new exit (range 3) 7460 | -8/Garrison | Entered Materials 7460 | -8/Materials | Accompanied by 3 allies 7504 | -8/Materials | Build established: Scavenger-Tank 7642 | -8/Materials | Lost 3 allies 7976 | -8/Materials | Build established: Tank 8089 | -8/Materials | Discovered new exit (range 16) 8168 | -8/Materials | Repaired Hpw. Shotgun 8912 | -8/Materials | Discovered new exit (range 14) 9338 | -8/Materials | Build established: Skirmisher 9858 | -8/Materials | Discovered new exit (range 16) 10139 | -8/Materials | Identified exit to Garrison 10139 | -8/Materials | Entered Garrison 10252 | -8/Garrison | Triggered checkpoint 10263 | -8/Garrison | Triggered checkpoint 10493 | -8/Garrison | Discovered new exit (range 12) 10636 | -8/Garrison | Triggered checkpoint 10806 | -8/Garrison | Discovered new exit (range 15) 10847 | -8/Garrison | Expanded RIF knowledge: Zone Cloak 11164 | -8/Garrison | Triggered checkpoint 11330 | -8/Garrison | Lost 4 parts (3n1w) 11448 | -8/Garrison | Discovered new exit (range 10) 11509 | -8/Garrison | Entered Factory 11509 | -7/Factory | Evolved 2 slots: Utility x1, Weapon x1 11948 | -7/Factory | Build established: Tank 12044 | -7/Factory | Discovered new exit (range 13) 12688 | -7/Factory | Discovered new exit (range 15) 12914 | -7/Factory | Build established: Skirmisher 13197 | -7/Factory | Repaired Hpw. Shotgun 13250 | -7/Factory | Repaired Imp. Assault Rifle 13271 | -7/Factory | Build established: Gunner 13302 | -7/Factory | Repaired Imp. Assault Rifle 13355 | -7/Factory | Repaired Imp. Assault Rifle 13461 | -7/Factory | Identified exit to Garrison 13461 | -7/Factory | Entered Garrison 13480 | -7/Garrison | Triggered checkpoint 13552 | -7/Garrison | Expanded RIF knowledge: Alert ID Control 13719 | -7/Garrison | Triggered checkpoint 13878 | -7/Garrison | Discovered new exit (range 11) 13988 | -7/Garrison | Triggered checkpoint 14025 | -7/Garrison | Found embedded Infiltrators 14110 | -7/Garrison | Triggered checkpoint 14111 | -7/Garrison | Triggered checkpoint 14160 | -7/Garrison | Discovered new exit (range 5) 14604 | -7/Garrison | Discovered new exit (range 13) 14699 | -7/Garrison | Entered Factory 14699 | -6/Factory | Evolved 2 slots: Utility x2 14895 | -6/Factory | Discovered new exit (range 7) 15031 | -6/Factory | Identified exit to Lower Caves 15031 | -6/Factory | Identified exit to Extension 15561 | -6/Factory | Build established: Tank 15891 | -6/Factory | Build established: Mutant 16887 | -6/Factory | Lost 4 parts (1n1u2w) 16962 | -6/Factory | Crushed by falling debris 17127 | -6/Factory | Discovered new exit (range 6) 17998 | -6/Factory | Sucked down chute 17998 | -6/Factory | Entered Waste 18049 | -6/Waste | Spotted C-40 Crusher 18092 | -6/Waste | Spotted C-40 Crusher 18146 | -6/Waste | Spotted C-40 Crusher 18184 | -6/Waste | Spotted C-40 Crusher 18185 | -6/Waste | Spotted C-40 Crusher 18232 | -6/Waste | Warlord forces began an assault 18232 | -6/Waste | Allies destroyed C-40 Crusher 18232 | -6/Waste | Allies destroyed C-40 Crusher 18241 | -6/Waste | Allies destroyed C-40 Crusher 18241 | -6/Waste | Allies destroyed C-40 Crusher 18315 | -6/Waste | Spotted C-40 Crusher 18324 | -6/Waste | Allies destroyed C-40 Crusher 18354 | -6/Waste | Lost 5 allies 18381 | -6/Waste | Discovered new exit (range 13) 18424 | -6/Waste | Found Enh. Force Lance 18466 | -6/Waste | Entered Factory 18466 | -6/Factory | Accompanied by 14 allies 18800 | -6/Factory | Lost 3 allies 18904 | -6/Factory | System corruption reached 10% 19060 | -6/Factory | Build established: Skirmisher 19596 | -6/Factory | Discovered exit to Lower Caves (range 10) 19678 | -6/Factory | Discovered exit to Extension (range 14) 19771 | -6/Factory | Entered Extension 19771 | -6/Extension | Accompanied by 6 allies 19878 | -6/Extension | Rescued a captive Derelict 19887 | -6/Extension | Build established: Tank 19986 | -6/Extension | Rescued a captive Derelict 19987 | -6/Extension | Rescued a captive Derelict 20087 | -6/Extension | Rescued a captive Derelict 20166 | -6/Extension | Rescued a captive Derelict 20167 | -6/Extension | Rescued a captive Derelict 20267 | -6/Extension | Build established: Commander-Tank 20553 | -6/Extension | Spotted B-75 Beast 20567 | -6/Extension | Destroyed B-75 Beast 20586 | -6/Extension | Spotted B-75 Beast 20603 | -6/Extension | Destroyed B-75 Beast 20633 | -6/Extension | Lost 4 allies 20859 | -6/Extension | Rescued a captive Derelict 20863 | -6/Extension | Lost 6 allies 20881 | -6/Extension | Rescued A7 21196 | -6/Extension | Discovered new exit (range 10) 21197 | -6/Extension | Discovered new exit (range 6) 21232 | -6/Extension | Entered Cetus 21232 | -6/Cetus | Accompanied by 13 allies (A7) 21237 | -6/Cetus | Acquired a Cetus Manufacturing Module code from A7 21332 | -6/Cetus | Spotted Cetus Guard 21333 | -6/Cetus | Spotted Cetus Guard 21333 | -6/Cetus | Spotted Cetus Guard 21333 | -6/Cetus | Spotted Cetus Guard 21346 | -6/Cetus | Destroyed Cetus Guard 21347 | -6/Cetus | Allies destroyed Cetus Guard 21347 | -6/Cetus | Allies destroyed Cetus Guard 21362 | -6/Cetus | Destroyed Cetus Guard 21391 | -6/Cetus | Lost 10 allies 21461 | -6/Cetus | Started Cetus Manufacturing Module 21486 | -6/Cetus | Manufactured an Enhanced Grunt 21490 | -6/Cetus | Escorted A7 to Cetus Mainframe 21511 | -6/Cetus | Manufactured an Enhanced Grunt 21525 | -6/Cetus | Discovered new exit (range 16) 21536 | -6/Cetus | Manufactured an Enhanced Grunt 21561 | -6/Cetus | Manufactured an Enhanced Grunt 21586 | -6/Cetus | Manufactured an Enhanced Grunt 21637 | -6/Cetus | Spotted Cetus Guard 21637 | -6/Cetus | Spotted Cetus Guard 21639 | -6/Cetus | Destroyed Cetus Guard 21640 | -6/Cetus | Spotted Cetus Guard 21643 | -6/Cetus | Spotted Cetus Guard 21647 | -6/Cetus | Allies destroyed Cetus Guard 21655 | -6/Cetus | Allies destroyed Cetus Guard 21657 | -6/Cetus | Allies destroyed Cetus Guard 21664 | -6/Cetus | Discovered new exit (range 16) 21670 | -6/Cetus | Met Revision 17 21849 | -6/Cetus | Entered Archives 21849 | -6/Archives | Accompanied by 8 allies (A7) 21854 | -6/Archives | Received a hacking code to weaken MAIN.C 21910 | -6/Archives | Discovered new exit (range 13) 21928 | -6/Archives | Discovered new exit (range 16) 21956 | -6/Archives | Unable to access archive contents 21964 | -6/Archives | Discovered new exit (range 13) 22026 | -6/Archives | Build established: Scavenger-Tank 22137 | -6/Archives | Entered Hub_04(d) 22137 | -6/Hub_04(d) | Accompanied by 7 allies 22487 | -6/Hub_04(d) | First assault squad dispatched 22603 | -6/Hub_04(d) | Core integrity fell below 50% 22650 | -6/Hub_04(d) | Discovered new exit (range 16) 22737 | -6/Hub_04(d) | Network Hub disabled 22737 | -6/Hub_04(d) | Network Hub disabled 22776 | -6/Hub_04(d) | Identified exit to Garrison 22778 | -6/Hub_04(d) | Entered Garrison 23042 | -6/Garrison | Triggered checkpoint 23044 | -6/Garrison | Triggered checkpoint 23856 | -6/Garrison | Found embedded Infiltrators 23939 | -6/Garrison | Discovered new exit (range 13) 24039 | -6/Garrison | Triggered checkpoint 24114 | -6/Garrison | Discovered new exit (range 9) 24126 | -6/Garrison | Core integrity fell below 20% 24162 | -6/Garrison | Triggered checkpoint 24170 | -6/Garrison | Triggered checkpoint 24300 | -6/Garrison | Discovered new exit (range 11) 24338 | -6/Garrison | Triggered checkpoint 24410 | -6/Garrison | Garrison Relay disabled 24506 | -6/Garrison | Triggered checkpoint 24558 | -6/Garrison | Rescued a captive Derelict 24559 | -6/Garrison | Rescued a captive Derelict 24708 | -6/Garrison | Triggered checkpoint 24756 | -6/Garrison | Garrison Relay disabled 24812 | -6/Garrison | Phase Generator disabled 25004 | -6/Garrison | Lost 3 parts (1p2w) 25591 | -6/Garrison | Build established: Commander-Tank 25778 | -6/Garrison | Expanded RIF knowledge: Code Merge 25888 | -6/Garrison | Garrison Relay disabled 25944 | -6/Garrison | Garrison Relay disabled 25971 | -6/Garrison | Garrison Relay disabled 25985 | -6/Garrison | Lost 3 allies 25989 | -6/Garrison | Garrison Relay disabled 26074 | -6/Garrison | Garrison Relay disabled 26078 | -6/Garrison | Garrison Relay disabled 26124 | -6/Garrison | Spotted Striker 26132 | -6/Garrison | Rewired Executioner 26180 | -6/Garrison | Allies destroyed Striker 26240 | -6/Garrison | Build established: Bothacker-Skirmisher 26264 | -6/Garrison | Entered Factory 26264 | -5/Factory | Accompanied by 5 allies 26264 | -5/Factory | Evolved 2 slots: Propulsion x1, Utility x1 26564 | -5/Factory | First assault squad dispatched 26585 | -5/Factory | Identified exit to Upper Caves 26624 | -5/Factory | Build established: Bothacker-Tank 26698 | -5/Factory | Lost 5 allies 26878 | -5/Factory | High security lockdown imminent 26958 | -5/Factory | High security lockdown engaged 26968 | -5/Factory | Garrison activated, responded to threat 27014 | -5/Factory | Build established: Bothacker-Skirmisher 27059 | -5/Factory | Self-destructed Last Messages --------------- 26987_ C-30 ARC bursts open, deploying its payload. 26987_ G-67 Veteran unfolds itself. 26987_ L-41 Fighter unfolds itself. 26987_ G-50 Soldier unfolds itself. 26987_ E-15 Imp unfolds itself. 26987_ Acquired Helical Railgun. 26989_ Acquired Gauss Rifle. 26990_ Arm. Leg blown off. 26990_ Gauss Rifle blown off. 26990_ E-15 Imp destroyed. 26991_ L-41 Fighter suffers critical hit (Burn). 26993_ Acquired Gauss Rifle. 26995_ Acquired 15 matter. 26998_ Slug penetrates Wall. 26998_ Slug penetrates E-15 Imp. 26998_ E-15 Imp destroyed. 27001_ Acquired 10 matter. 27020_ W-25 Informer sends out distress signal. 27027_ Helical Railgun destroyed. 27028_ Penetrated by Slug. Map ----- +----------------------------------------------------+ | ?????????????????????????????????????????????????? | | ?????????????????????????????????????????????????? | | ???????????? ??????????????????????????????????? | | ??????????? ??????????????????????????????????? | | ??????????? ??????????????????????????????????? | | ??????????? ??????????????????????????????????? | | ???????"""" ??????????????????????????????????? | | ???????"""" ??????????????????????????????????? | | ??? ??????????????????????????????????? | | ??? = #?????????????????????????????????? | | #?????????????????????????????????? | | "Y" #?????????????????????????????????? | | """ #?????????????????????????????????? | | #?????????????????????????????????? | | ?? ? #?????????????????????????????????? | | ???# #?# #?????????????????????????????????? | | ???# ###/##############????????????????????? | | #??# # ghh g #????????????????????? | | ?# # g"""gg """ #????????????????????? | | ?+ / """""g""""" =#????????????????????? | | ?# # gY""""" """"" #????????????????????? | | ?# # YggggYb l g =#????????????????????? | | ?# # """g """ #????????????????????? | | ?# # """"" """"" #????????????????????? | | #"?# # """""g"""""ll#????????????????????? | | #"## #! @ !#????????????????????? | | ##################????????????????????? | | #?????????????????????????????????????? | | #########?????????????????????????????? | | # ###########???????????????????? | | # ## #???????????????????? | | # ## "" #???????????????????? | | # ## G" #???????????????????? | | ###"######## ] ## ! "" #???????????????????? | | ##????# ## #???????????????????? | | "#????# !! ## """ #???????????????????? | | ] "###### !! ## """"" #???????????????????? | | "% + w ## """"" #???????????????????? | | "###### ## #???????????????????? | | " * " #???# #####/#####???????????????????? | | " !# #???#+#+#####"%* " #???????????????????? | | "" * #######*=*! !!%= "##???????????????????? | | /! =!%=%*%% %%=% +???????????????????? | | "" #=##[/=/=!! !%% ###???????????????????? | | ## ######"#####"# ! #?????????????????????? | | #?# # ! ### ###?????????????????????? | | ##+###??#" #?# #???????????????????????? | | ?# #?????# #?# #???????????????????????? | | ?# #?????# [ #?? #???????????????????????? | | ?# ####### #?? #???????????????????????? | +----------------------------------------------------+ Best States ------------- Heat Dissipation 56 Energy Generation 29 Energy Capacity 350 Matter Stores 300 Matter Capacity 300 Sight Range 16 Robot Scan Range 14 Terrain Scan Density 10 Jamming Range 12 Base Temperature (-) 100 Armor Coverage 450 Resistance: TH 20 Weapon Shielding 66 Point Defense Rating 80 Phase Shifting 5 Evasion (%) 60 Targeting Accuracy 16 Melee Accuracy 16 Target Analysis 5 Core Analysis 6 Recoil Reduction 4 Kinecelleration 30 Defensive Hacking 10 Relay Coupler Types 4 Relay Coupler Value 148 Item Schematics ----------------- Lgt. Armor Plating | -10/Materials | Hacked Hpw. Shotgun | -8/Materials | Scanalyzed System Shield | -8/Materials | Scanalyzed Imp. Light Armor Plating | -8/Materials | Scanalyzed Katana | -8/Materials | Scanalyzed Shield Generator | -8/Materials | Scanalyzed Hvy. Flail | -8/Materials | Scanalyzed Titanium Leg | -8/Materials | Hacked Robot Schematics ------------------ None Fabricated ------------ Nothing Alien Tech Used ----------------- None Achievements -------------- Gun Specialist Challenges ------------ None Game ------ Seed DirtyBoreMatter Manual? 0 Play Time 03:09:03 Cumulative 116.7 hours Start 2024.05.19 @ 02:39:54 End 2024.05.26 @ 00:59:38 Sessions 5 Manual Loads 0 Difficulty Rogue Special Mode None Game No. 77 Rogue 77 Adventurer 0 Explorer 0 Win Type - Total 2 Types 1/0/0/1/0/0/0/0/0 Lore% 61 Gallery% 53 Achievement% 49 Wizard Run 0 Options --------- Layout 0 ASCII 0 Keyboard 0 Movement Mouse Keybinds 0 Fullscreen 1 Font 18/SmallcapsGlow Map View 76x50 Zoom Use 0% Tactical HUD 1 Map Filters NONE Filters NONE Steam 1 RUN: f2f815fd-b7de-41fc-83a3-eef78d7351cc